[Event "26th Womens ECCC 2022"]
[Site "Mayrhofen"]
[Date "2022.10.03"]
[Round "1.16"]
[White "Thomas, Apolline"]
[Black "Balajayeva, Khanim"]
[Result "0-1"]
[ECO "C86"]
[WhiteElo "1942"]
[BlackElo "2384"]
[Annotator "TA"]
[PlyCount "60"]
[EventDate "2022.10.03"]
[EventType "team-tourn"]
[EventCountry "AUT"]
[SourceTitle "playchess.com"]
[Source "ChessBase"]
[SourceQuality "1"]
[TimeControl "40/5400+30:1800+30"]

{[%evp 17,60,14,7,-16,0,0,0,0,0,0,0,0,0,0,-4,-255,-248,-254,-266,-264,-254,-252,-245,-260,-254,-363,-367,-357,-304,-362,-368,-417,-394,-456,-450,-464,-445,-619,-616,-961,-643,-1305,-1274,-1172,-333]} 1. e4 {[%emt 0:00:05]} e5 {[%emt 0:00:05]} 2. Nf3 {[%emt 0:00:05]} Nc6 {[%emt 0:00:08]} 3. Bb5 {[%emt 0:00:09]} a6 {[%emt 0:00:33]} 4. Ba4 {[%emt 0:00:06]} Nf6 {[%emt 0:00:31]} 5. O-O {[%emt 0:00:12]} Be7 {[%emt 0:00:05]} 6. Qe2 {[%emt 0:00:08]} b5 {[%emt 0:02:53]} 7. Bb3 {[%emt 0:00:05]} O-O {[%emt 0:00:40]} 8. c3 {[%emt 0:00:13]} d5 {[%emt 0:04:04]} 9. d3 {[%emt 0:00:12]} Re8 {[%emt 0:03:27]} 10. Rd1 {[%emt 0:08:07] C86: Closed Ruy Lopez: Worrall Attack.} Be6 {[%emt 0:11:39]} 11. Nbd2 {[%emt 0:06:48]} Bf8 {[%emt 0:03:30]} 12. Nf1 {[%emt 0:01:48] The position is equal.} h6 {[%emt 0:01:39]} 13. Ng3 {[%emt 0:15:04]} Qd7 {[%emt 0:08:39]} 14. h3 {[%emt 0:10:59]} Rad8 {[%emt 0:06:17]} 15. Be3 {[%emt 0:06:57]} Qc8 {[%emt 0:03:51] [#]} 16. a4 $146 {[%emt 0:12:14][%mdl 8192] White does not recover from this.} (16. Bd2 $11 {and White is okay.}) ({Predecessor:} 16. Rac1 a5 17. Bc2 dxe4 18. dxe4 Bc4 19. Bd3 Bxd3 20. Rxd3 Rxd3 21. Qxd3 Qb7 22. Nd2 {1-0 (86) Bortnyk,O (2610)-Kleiman,J (2399) Chess.com INT 2018}) 16... dxe4 $19 {[%emt 0:01:33]} 17. Bxe6 {[%emt 0:00:14]} exf3 {[%emt 0:00:19]} ({Weaker is} 17... Rxe6 18. dxe4 Rxd1+ 19. Qxd1 $14) 18. Bxf7+ {[%emt 0:10:01]} Kxf7 {[%emt 0:00:04]} 19. Qxf3 {[%emt 0:00:04]} Re6 {[%emt 0:03:17]} 20. axb5 {[%emt 0:07:23]} axb5 {[%emt 0:00:05]} 21. d4 {[%emt 0:00:10]} (21. Ne4 {was worth a try.}) 21... exd4 {[%emt 0:04:41]} 22. cxd4 {[%emt 0:00:06]} Nb4 {[%emt 0:00:41] Prevents d5.} 23. Ra5 {[%emt 0:05:48]} Qd7 {[%emt 0:01:38]} 24. Rc1 {[%emt 0:04:04]} c6 {[%emt 0:02:22]} ({Not} 24... Kg8 $2 25. Raa1 $19) 25. Rca1 {[%emt 0:00:37] [#] Black must now prevent Ra7.} Qd5 {[%emt 0:00:32] Black is clearly winning.} 26. Ra7+ {[%emt 0:04:37]} Kg8 {[%emt 0:01:18]} 27. Qf4 {[%emt 0:01:37]} Nc2 {[%emt 0:02:53][%csl LRa1,LRd4]} 28. R1a6 {[%emt 0:04:51]} Nxd4 {[%emt 0:02:53]} 29. Rb7 {[%emt 0:00:56] [#]} Ne2+ $1 {[%emt 0:01:50][%mdl 512]} 30. Nxe2 {[%emt 0:00:16]} Qd1+ {[%emt 0:00:02] Weighted Error Value: White=1.11/Black=0.29 (precise)} 0-1

[Event "26th Womens ECCC 2022"]
[Site "Mayrhofen"]
[Date "2022.10.03"]
[Round "1.17"]
[White "Salimova, Nurgyul"]
[Black "Mayrhuber, Nikola"]
[Result "0-1"]
[ECO "A05"]
[WhiteElo "2415"]
[BlackElo "2117"]
[Annotator "TA"]
[PlyCount "120"]
[EventDate "2022.10.03"]
[EventType "team-tourn"]
[EventCountry "AUT"]
[SourceTitle "playchess.com"]
[Source "ChessBase"]
[SourceQuality "1"]
[TimeControl "40/5400+30:1800+30"]

{[%evp 13,120,7,18,0,14,-7,8,-31,7,0,0,0,0,0,0,0,0,0,0,0,6,-23,-20,-56,-60,-68,-70,-73,-73,-150,-149,-347,-343,-556,-533,-394,-372,-569,-569,-569,-569,-569,-569,-29994,-569,-488,-562,-562,-562,-562,-562,-562,-562,-547,-547,-634,-600,-665,-637,-656,-537,-537,-527,-522,-497,-487,-419,-602,-538,-557,-562,-644,-640,-696,-696,-1096,-1071,-952,-718,-812,-812,-812,-798,-708,-529,-839,-783,-743,-718,-660,-689,-29980,-2079,-29987,-1172,-1339,-902,-29965,-29967,-1954,-996,-29986,-29986,-29987,-29975,-29993,-29990,-29996,-29997]} 1. Nf3 {[%emt 0:00:05]} Nf6 {[%emt 0:00:12]} 2. c4 {[%emt 0:00:18]} e6 {[%emt 0:00:07]} 3. g3 {[%emt 0:00:15]} d5 {[%emt 0:02:28]} 4. d4 {[%emt 0:00:24]} Bb4+ {[%emt 0:03:54]} 5. Bd2 {[%emt 0:00:24]} Be7 {[%emt 0:00:05]} 6. Bg2 {[%emt 0:00:09]} O-O {[%emt 0:00:07]} 7. O-O {[%emt 0:00:29]} b6 {[%emt 0:02:43]} 8. Bg5 {[%emt 0:03:29] E11: Bogo-Indian.} Bb7 {[%emt 0:03:15]} 9. Qc2 {[%emt 0:00:31]} Nbd7 {[%emt 0:08:55]} 10. Nc3 {[%emt 0:04:31] The position is equal.} h6 {[%emt 0:05:58]} 11. Bxf6 {[%emt 0:07:16]} Nxf6 {[%emt 0:00:20]} 12. Ne5 {[%emt 0:00:35] [#]} c5 $146 {[%emt 0:03:01]} ({Predecessor:} 12... Rc8 13. Nb5 Ra8 14. cxd5 Nxd5 15. Nc6 Qd7 16. Nxe7+ Qxe7 17. Nxc7 Nb4 18. Qb3 Bxg2 19. Kxg2 Qxc7 20. Qxb4 {1-0 (38) Adhithya,S (2083)-Pimpalkhare,V (1900) Rajahmundry 2016}) 13. dxc5 {[%emt 0:01:47]} bxc5 {[%emt 0:01:59]} 14. cxd5 {[%emt 0:04:27]} exd5 {[%emt 0:02:08]} 15. Rfd1 {[%emt 0:01:05]} Qc7 {[%emt 0:00:58]} 16. Nd3 {[%emt 0:01:18]} Rfd8 {[%emt 0:08:32]} 17. Nf4 {[%emt 0:07:36][%cal Rf4d5]} d4 {[%emt 0:03:41]} 18. Bxb7 {[%emt 0:04:08]} Qxb7 {[%emt 0:00:07]} 19. Na4 {[%emt 0:00:26]} Rac8 {[%emt 0:01:56]} 20. b3 {[%emt 0:06:30]} Qd7 {[%emt 0:14:38]} 21. Qc4 {[%emt 0:19:45]} (21. Nd3 $142) 21... Bd6 $17 {[%emt 0:07:08]} 22. Ng2 {[%emt 0:08:49] This move loses the game for White.} (22. e3 $17 {might work better.}) 22... Qh3 $19 {[%emt 0:04:37]} 23. Ne1 $2 {[%emt 0:05:34]} (23. f3 Nh5 24. Qd3) 23... Re8 {[%emt 0:04:47]} ({Weaker is} 23... Ng4 24. Nf3 $17) 24. Nf3 {[%emt 0:01:24] [#]} Ng4 $1 {[%emt 0:08:47][%cal Od6g3]} 25. Rac1 {[%emt 0:05:00] [#]} (25. Qa6 $142 Rcd8 26. Qd3) 25... Bxg3 $1 {[%emt 0:05:43][%mdl 512]} 26. hxg3 {[%emt 0:01:54] [#]} Re5 $1 {[%emt 0:01:32][%mdl 512]} 27. Qa6 {[%emt 0:10:37] [#]} Rh5 $1 {[%emt 0:02:53][%csl Gh5][%cal Rh3h1]} 28. Qxc8+ {[%emt 0:00:41]} Kh7 {[%emt 0:00:04][%csl Gh5][%cal Rh3h1]} 29. Ng5+ {[%emt 0:01:46]} Rxg5 {[%emt 0:01:08]} 30. Qxg4 {[%emt 0:00:45]} Qxg4 {[%emt 0:01:40]} 31. Rxc5 {[%emt 0:02:39]} Qxe2 {[%emt 0:00:50]} 32. Rxd4 {[%emt 0:01:05] [#]} Rxg3+ {[%emt 0:00:57][%mdl 512]} 33. fxg3 {[%emt 0:00:07]} Qe3+ {[%emt 0:00:03]} 34. Kg2 {[%emt 0:00:45] aiming for Rf4.} Qxd4 {[%emt 0:00:04][%mdl 4096] Endgame KQ-KRN} 35. Rf5 {[%emt 0:00:39]} Qe4+ {[%emt 0:01:30]} 36. Rf3 {[%emt 0:00:05]} Qc2+ {[%emt 0:00:41]} 37. Rf2 {[%emt 0:00:06]} Qc6+ {[%emt 0:00:04]} 38. Kh2 {[%emt 0:00:15]} Kg6 {[%emt 0:00:26]} 39. Nb2 {[%emt 0:00:18]} Qc5 {[%emt 0:00:44]} 40. Rd2 {[%emt 0:01:49]} (40. Nd3 $142 Qh5+ 41. Kg2 Qd5+ 42. Rf3) 40... f5 {[%emt 0:01:04] Strongly threatening ...Kh5.} 41. Nc4 {[%emt 0:01:17]} Kh5 {[%emt 0:07:09] And now ...g5 would win.} 42. Re2 {[%emt 0:01:31]} g5 {[%emt 0:01:53]} 43. Kg2 {[%emt 0:03:51]} Qd5+ {[%emt 0:00:36]} 44. Kh2 {[%emt 0:01:06]} Qf3 {[%emt 0:01:29] Against Rf2} 45. Rg2 {[%emt 0:00:24]} Qe4 {[%emt 0:04:31]} 46. Nd6 {[%emt 0:01:51]} Qd5 {[%emt 0:00:30]} 47. Nc4 {[%emt 0:00:17]} f4 {[%emt 0:07:27]} 48. gxf4 {[%emt 0:01:23]} gxf4 {[%emt 0:00:24]} 49. Rf2 {[%emt 0:00:28]} Kg4 {[%emt 0:00:52]} 50. Rg2+ {[%emt 0:00:32]} Kf5 {[%emt 0:02:43]} 51. Rd2 {[%emt 0:00:54]} Qf3 {[%emt 0:01:19] Threatens to win with ...Qg3+.} 52. Nd6+ {[%emt 0:03:33]} Kf6 {[%emt 0:00:27]} (52... Ke6 $142 53. Ne4 Qxe4 54. Rf2 Ke5 55. a3 f3 56. Ra2 Kf4 57. Rb2 {[#]} Qe2+ $3 {[%mdl 512]} 58. Rxe2 fxe2 59. Kg2 e1=Q 60. Kh2 Qg3+ 61. Kh1 Kf3 62. b4 Qg2#) 53. Nc4 {[%emt 0:00:37]} h5 {[%emt 0:00:17]} (53... Qg3+ $142 54. Kh1 f3 55. Nd6 Qe1+ 56. Kh2 Qxd2+ 57. Kg3 Qxd6+ 58. Kxf3 Qd3+ 59. Kf4 h5 60. a3 h4 61. b4 h3 62. b5 h2 63. b6 h1=Q 64. bxa7 Qh4#) 54. Rg2 {[%emt 0:00:52]} h4 {[%emt 0:01:58][%cal Bh5h4,Bh4h3][%mdl 32] ( -> ...Qd3)} 55. Rg6+ {[%emt 0:02:10]} Kf5 {[%emt 0:00:07]} 56. Rg2 {[%emt 0:00:37]} h3 {[%emt 0:01:47][%csl Gh3][%cal Rf3g2]} 57. Rd2 {[%emt 0:00:14]} Qg3+ {[%emt 0:02:11] Black mates.} 58. Kh1 {[%emt 0:00:05]} f3 {[%emt 0:00:31][%cal Bf4f3,Bf3f2][%mdl 32]} 59. Nd6+ {[%emt 0:00:35]} Kg6 {[%emt 0:01:45]} 60. Nc4 {[%emt 0:00:50]} f2 {[%emt 0:00:46] Weighted Error Value: White=0.89/Black=0.55} 0-1

[Event "26th Womens ECCC 2022"]
[Site "Mayrhofen"]
[Date "2022.10.03"]
[Round "1.18"]
[White "Schloffer, Jasmin-Denise"]
[Black "Roebers, Eline"]
[Result "0-1"]
[ECO "D10"]
[WhiteElo "2086"]
[BlackElo "2352"]
[Annotator "TA"]
[PlyCount "74"]
[EventDate "2022.10.03"]
[EventType "team-tourn"]
[EventCountry "AUT"]
[SourceTitle "playchess.com"]
[Source "ChessBase"]
[SourceQuality "1"]
[TimeControl "40/5400+30:1800+30"]

{[%evp 12,74,12,16,16,0,0,0,8,0,0,0,0,0,0,0,2,0,0,-12,0,0,12,0,41,8,26,20,99,106,97,87,104,84,105,103,117,54,54,44,40,21,20,-62,-63,-55,-58,-88,-66,-556,-550,-590,-590,-590,-583,-576,-572,-1145,-1076,-876,-748,-5700,-5522,-12842,-642]} 1. d4 {[%emt 0:00:03]} d5 {[%emt 0:00:15]} 2. c4 {[%emt 0:00:06]} c6 {[%emt 0:00:03]} 3. cxd5 {[%emt 0:00:05]} cxd5 {[%emt 0:00:05]} 4. Bf4 {[%emt 0:00:04]} Nc6 {[%emt 0:00:06]} 5. Nf3 {[%emt 0:00:35]} Nf6 {[%emt 0:00:12]} 6. Nc3 {[%emt 0:00:05]} Nh5 {[%emt 0:00:28]} 7. Bg5 {[%emt 0:02:51]} h6 {[%emt 0:01:14] D13: Slav Defence: Exchange variation without ...Bf5.} 8. Bh4 {[%emt 0:00:31]} g5 {[%emt 0:08:20]} 9. Bg3 {[%emt 0:00:04]} Bg7 {[%emt 0:00:04] The position is equal.} 10. e3 {[%emt 0:06:21]} e6 {[%emt 0:10:55]} 11. Rc1 {[%emt 0:06:37]} Nxg3 {[%emt 0:07:16]} 12. hxg3 {[%emt 0:01:34]} Bd7 {[%emt 0:00:27]} 13. Bd3 {[%emt 0:02:51]} Rc8 {[%emt 0:02:03]} 14. a3 {[%emt 0:11:03] [#]} O-O $146 {[%emt 0:22:10]} ({Predecessor:} 14... a6 15. g4 {½-½ (15) Flumbort,A (2530)-Varga,Z (2440) Budapest 2012}) 15. g4 {[%emt 0:19:33]} Na5 {[%emt 0:08:56]} 16. O-O {[%emt 0:04:37]} Nc4 {[%emt 0:02:04]} 17. Qe2 {[%emt 0:02:06]} Nd6 {[%emt 0:05:59]} 18. Rfd1 {[%emt 0:10:23]} Bc6 {[%emt 0:03:43]} 19. Ne5 {[%emt 0:04:12]} f6 {[%emt 0:04:48]} (19... Qb6 $11) 20. Nxc6 $16 {[%emt 0:01:49]} bxc6 {[%emt 0:00:04]} 21. e4 {[%emt 0:03:35]} Qd7 {[%emt 0:07:34]} 22. Bb1 {[%emt 0:03:18]} dxe4 {[%emt 0:02:35]} 23. Nxe4 {[%emt 0:00:47]} ({Don't play} 23. Bxe4 $6 f5 24. Bc2 fxg4 $14) 23... Nxe4 {[%emt 0:00:10]} 24. Qxe4 {[%emt 0:00:44]} (24. Ba2 $16) 24... f5 $14 {[%emt 0:00:10]} 25. gxf5 {[%emt 0:02:33]} exf5 {[%emt 0:00:07]} 26. Ba2+ {[%emt 0:00:03]} Kh8 {[%emt 0:00:26]} 27. Be6 {[%emt 0:04:17]} ({Better is} 27. Qd3 $11) 27... fxe4 $15 {[%emt 0:01:24]} 28. Bxd7 {[%emt 0:00:05]} Rcd8 $36 {[%emt 0:00:12][%mdl 2048] Black is pushing.} 29. Bxc6 {[%emt 0:00:40]} Bxd4 {[%emt 0:00:05]} 30. Bxe4 $2 {[%emt 0:06:44][%mdl 8192] This move loses the game for White.} (30. Kh2 $1 $15) 30... Bxf2+ $19 {[%emt 0:00:21] Black is clearly winning.} 31. Kf1 {[%emt 0:00:32] [#] Rxd8 is the strong threat.} Bb6+ {[%emt 0:02:17]} 32. Bf3 {[%emt 0:03:46]} Rxd1+ {[%emt 0:00:05]} 33. Rxd1 {[%emt 0:00:04]} g4 $1 {[%emt 0:00:03]} 34. Rd6 {[%emt 0:00:26]} gxf3 {[%emt 0:00:18]} 35. gxf3 {[%emt 0:00:05]} Rxf3+ {[%emt 0:00:12]} 36. Kg2 {[%emt 0:00:07]} Rf2+ {[%emt 0:00:33]} 37. Kg3 {[%emt 0:00:03]} Rxb2 {[%emt 0:00:09] Weighted Error Value: White=0.80/Black=0.10 (very precise)} 0-1

[Event "26th Womens ECCC 2022"]
[Site "Mayrhofen"]
[Date "2022.10.03"]
[Round "1.19"]
[White "Heinemann, Josefine"]
[Black "Schnegg, Anna-Lena"]
[Result "1/2-1/2"]
[ECO "C41"]
[WhiteElo "2318"]
[BlackElo "2154"]
[Annotator "TA"]
[PlyCount "62"]
[EventDate "2022.10.03"]
[EventType "team-tourn"]
[EventCountry "AUT"]
[SourceTitle "playchess.com"]
[Source "ChessBase"]
[SourceQuality "1"]
[TimeControl "40/5400+30:1800+30"]

{[%evp 11,62,35,39,35,54,45,45,34,48,37,38,35,51,43,46,37,31,16,18,-25,-25,-25,-25,-47,-17,-18,-13,-18,-6,-10,-6,0,-3,-8,-12,-6,-12,-35,-53,-54,-40,-46,-9,-20,0,-127,0,0,0,-91,0,0,0]} 1. e4 {[%emt 0:00:04]} e5 {[%emt 0:00:16]} 2. Nf3 {[%emt 0:00:06]} d6 {[%emt 0:00:27]} 3. d4 {[%emt 0:00:24]} exd4 {[%emt 0:00:22]} 4. Nxd4 {[%emt 0:00:08]} Nf6 {[%emt 0:00:31]} 5. Nc3 {[%emt 0:00:09]} Be7 {[%emt 0:00:36]} 6. g3 {[%emt 0:00:45]} O-O {[%emt 0:02:14]} 7. Bg2 {[%emt 0:01:57] C41: Philidor Defence.} Bg4 {[%emt 0:06:32]} 8. f3 {[%emt 0:03:13]} Bd7 {[%emt 0:05:22]} 9. O-O {[%emt 0:01:00] White is slightly better.} Nc6 {[%emt 0:04:00]} 10. Nde2 {[%emt 0:05:56]} Qc8 {[%emt 0:05:02]} 11. Nf4 {[%emt 0:06:38] [#]} Re8 $146 {[%emt 0:05:41]} ({Predecessor:} 11... Ne5 12. b3 Re8 13. Bb2 Bf8 14. a4 c6 15. Qd2 Qc7 16. Nce2 Rad8 17. Kh1 d5 18. exd5 Nxd5 19. Nxd5 cxd5 {½-½ (33) Ni,S (2450)-Ren,X (2262) China 2017}) 12. Be3 {[%emt 0:06:38]} Ne5 {[%emt 0:06:28]} 13. b3 {[%emt 0:04:53]} c6 {[%emt 0:05:56]} 14. a4 {[%emt 0:04:34]} Ng6 {[%emt 0:09:25]} 15. Qd2 {[%emt 0:03:59]} Nxf4 {[%emt 0:07:25]} 16. Bxf4 {[%emt 0:01:00]} d5 {[%emt 0:02:51]} 17. exd5 {[%emt 0:06:43]} Bb4 {[%emt 0:03:29]} 18. Qd4 {[%emt 0:07:52]} ({Wrong is} 18. d6 $2 Nd5 19. Qf2 Bxc3 $19) 18... Bxc3 {[%emt 0:01:49]} 19. Qxc3 {[%emt 0:00:08]} Nxd5 {[%emt 0:00:10]} 20. Qd4 {[%emt 0:00:32]} Nxf4 {[%emt 0:05:18]} 21. Qxf4 {[%emt 0:00:08]} Re2 {[%emt 0:08:25]} 22. Rf2 {[%emt 0:08:07]} Rxf2 {[%emt 0:05:47]} 23. Kxf2 {[%emt 0:00:08]} Bf5 {[%emt 0:01:19]} 24. Qd2 {[%emt 0:07:54]} Qd8 {[%emt 0:03:03]} 25. Rd1 {[%emt 0:03:01]} Qb6+ {[%emt 0:00:07]} 26. Kf1 {[%emt 0:00:09]} h6 {[%emt 0:01:02]} 27. Qc3 {[%emt 0:08:46]} Re8 {[%emt 0:03:19]} 28. Rd2 {[%emt 0:04:18]} (28. a5 $11 Qb5+ 29. Kg1) 28... Qa6+ {[%emt 0:03:39]} 29. Kf2 {[%emt 0:00:13]} Qb6+ {[%emt 0:00:15]} 30. Kf1 $1 {[%emt 0:00:04]} Qa6+ {[%emt 0:02:16]} (30... Re3 $17 31. Qc4 Qa5) 31. Kf2 $11 {[%emt 0:00:07]} Qb6+ {Weighted Error Value: White=0.14 (very precise) /Black=0.19 (very precise)} 1/2-1/2

[Event "26th Womens ECCC 2022"]
[Site "Mayrhofen"]
[Date "2022.10.03"]
[Round "1.20"]
[White "Konecny, Sophie"]
[Black "Trippold, Denise"]
[Result "0-1"]
[ECO "A45"]
[WhiteElo "1848"]
[BlackElo "2146"]
[Annotator "TA"]
[PlyCount "64"]
[EventDate "2022.10.03"]
[EventType "team-tourn"]
[EventCountry "AUT"]
[SourceTitle "playchess.com"]
[Source "ChessBase"]
[SourceQuality "1"]
[TimeControl "40/5400+30:1800+30"]

{[%evp 9,63,-21,-22,-34,7,-56,-45,-46,0,-68,-69,-60,-68,-168,-166,-302,-302,-291,-295,-442,-431,-433,-395,-552,-521,-538,-525,-607,-604,-613,-604,-600,-612,-599,-610,-675,-672,-639,-571,-777,-741,-1019,-1000,-1022,-982,-1007,-1002,-1302,-1284,-29992,-29993,-29993,-29994,-29998,-29999,-29999]} 1. d4 {[%emt 0:00:03]} Nf6 {[%emt 0:00:11]} 2. Nc3 {[%emt 0:00:05]} d5 {[%emt 0:00:12]} 3. Bf4 {[%emt 0:00:11]} a6 {[%emt 0:00:25]} 4. e3 {[%emt 0:00:37]} e6 {[%emt 0:00:19]} 5. Nf3 {[%emt 0:01:12]} c5 {[%emt 0:00:54]} 6. Ne5 {[%emt 0:04:53] D00: 1 d4 d5: Unusual lines.} Nc6 {[%emt 0:02:07]} 7. g4 {[%emt 0:04:27]} ({White should try} 7. Nxc6 $11 bxc6 8. Qf3) 7... cxd4 $15 {[%emt 0:12:19]} 8. exd4 {[%emt 0:03:59] Black is slightly better.} Qb6 {[%emt 0:05:04] [#]} (8... Nxe5 $15 {might be stronger.} 9. Bxe5 Qa5) 9. Na4 $146 {[%emt 0:05:48]} (9. Nxc6 $11 Qxc6 10. g5) ({Predecessor:} 9. Nxc6 bxc6 10. Na4 Qa7 11. Bg2 c5 12. g5 Ne4 13. Bxe4 dxe4 14. d5 exd5 15. Qxd5 {1-0 (21) Koelle,T (2340)-Sarkar,J (2360) Chess.com INT 2021}) 9... Qa5+ $1 {[%emt 0:11:31]} ({Much less strong is} 9... Qxd4 10. Qxd4 Nxd4 11. O-O-O $16) 10. c3 {[%emt 0:07:37]} Nxe5 {[%emt 0:00:55]} 11. dxe5 {[%emt 0:01:55] [#] Black converts the advantage convincingly.} (11. Bxe5 $15 Nd7 12. Bg3) 11... Nd7 $1 $19 {[%emt 0:06:47] aiming for ...b5.} ({Inferior is} 11... Nxg4 12. Qxg4 Qxa4 13. Bd3 $17) 12. Be3 {[%emt 0:04:53]} (12. Qd4 {was called for.}) 12... b5 {[%emt 0:10:42]} ({Don't take} 12... Nxe5 13. Bb6 Nf3+ 14. Ke2 Qb5+ 15. Kxf3 $18) 13. Nc5 {[%emt 0:03:15]} Bxc5 {[%emt 0:00:25]} 14. Bxc5 {[%emt 0:01:35]} (14. b4 {was the only defense.} Bxb4 15. cxb4 Qxb4+ 16. Qd2) 14... Nxc5 {[%emt 0:00:02]} 15. b4 {[%emt 0:01:07]} Qa3 {[%emt 0:04:18]} 16. Rc1 {[%emt 0:07:06]} Nd7 {[%emt 0:05:42]} 17. f4 {[%emt 0:04:12]} Bb7 {[%emt 0:01:01] [#] And now ...d4 would win.} 18. Qd2 {[%emt 0:03:12]} Rc8 {[%emt 0:03:27][%cal Od5d4] Strongly threatening ...d4!} 19. Bg2 {[%emt 0:05:06]} a5 {[%emt 0:03:14]} 20. O-O {[%emt 0:01:32]} axb4 {[%emt 0:01:26]} 21. cxb4 {[%emt 0:00:33]} O-O {[%emt 0:00:30]} 22. f5 {[%emt 0:02:23]} Rxc1 {[%emt 0:07:26]} 23. Rxc1 {[%emt 0:00:08]} Qa7+ {[%emt 0:00:27]} 24. Kh1 {[%emt 0:00:28]} d4 {[%emt 0:03:22]} 25. f6 {[%emt 0:02:33]} Bxg2+ {[%emt 0:00:20]} 26. Kxg2 {[%emt 0:00:06]} Qb7+ {[%emt 0:00:38]} 27. Kg3 {[%emt 0:01:08]} Qd5 {[%emt 0:02:26] ...Ra8 is the strong threat.} 28. Re1 {[%emt 0:02:48]} Nxe5 {[%emt 0:01:52] ( -> ...Qf3+)} 29. Qg5 {[%emt 0:00:48]} Qf3+ {[%emt 0:00:14] Black mates.} 30. Kh4 {[%emt 0:00:06]} Ng6+ {[%emt 0:00:05]} 31. Kh5 {[%emt 0:00:11]} Qh3+ {[%emt 0:00:03]} 32. Qh4 {[%emt 0:00:03]} Qxh4# {Weighted Error Value: White=0.60/Black=0.06 (flawless)} 0-1